[Event "Titled Tuesday Blitz August 1 Early 2023"]
[White "Hoffmann, Asa"]
[Black "Liu, Leonardo"]
[WhiteFideId "2001470"]
[BlackFideId "30965780"]
[WhiteElo "2380"]
[BlackElo "2212"]
[Result "0-1"]
[Round "4"]
[TimeControl "180+1"]
[Date "2023.08.01"]
[WhiteClock "0:01:31"]
[BlackClock "0:01:43"]
[Board "236"]

1. d4 {[%clk 0:03:00]}  Nf6 {[%clk 0:02:55]} 2. Bg5 {[%clk 0:02:58]}  g6 {[%clk 0:02:56]} 3. Nc3 {[%clk 0:02:57]}  Bg7 {[%clk 0:02:56]} 4. Qd2 {[%clk 0:02:57]}  O-O {[%clk 0:02:55]} 5. Bh6 {[%clk 0:02:56]}  d5 {[%clk 0:02:46]} 6. h4 {[%clk 0:02:56]}  c5 {[%clk 0:02:44]} 7. Nf3 {[%clk 0:02:53]}  cxd4 {[%clk 0:02:44]} 8. Nxd4 {[%clk 0:02:53]}  Nc6 {[%clk 0:02:23]} 9. Nxc6 {[%clk 0:02:51]}  bxc6 {[%clk 0:02:23]} 10. h5 {[%clk 0:02:52]}  e5 {[%clk 0:02:18]} 11. hxg6 {[%clk 0:02:51]}  fxg6 {[%clk 0:02:18]} 12. Bxg7 {[%clk 0:02:50]}  Kxg7 {[%clk 0:02:19]} 13. Qh6+ {[%clk 0:02:49]}  Kg8 {[%clk 0:02:19]} 14. e3 {[%clk 0:02:49]}  Rf7 {[%clk 0:02:12]} 15. O-O-O {[%clk 0:02:48]}  Rb8 {[%clk 0:02:12]} 16. Bd3 {[%clk 0:02:43]}  Ng4 {[%clk 0:02:12]} 17. Qh4 {[%clk 0:02:27]}  Qxh4 {[%clk 0:02:10]} 18. Rxh4 {[%clk 0:02:26]}  Nxf2 {[%clk 0:02:11]} 19. Re1 {[%clk 0:02:21]}  Nxd3+ {[%clk 0:02:11]} 20. cxd3 {[%clk 0:02:21]}  Ba6 {[%clk 0:02:09]} 21. d4 {[%clk 0:02:17]}  Rf2 {[%clk 0:02:06]} 22. dxe5 {[%clk 0:02:11]}  Rbxb2 {[%clk 0:02:06]} 23. Rf4 {[%clk 0:01:52]}  Rfc2+ {[%clk 0:02:02]} 24. Kd1 {[%clk 0:01:51]}  Rd2+ {[%clk 0:01:46]} 25. Kc1 {[%clk 0:01:50]}  Rbc2+ {[%clk 0:01:46]} 26. Kb1 {[%clk 0:01:50]}  Rxc3 {[%clk 0:01:44]} 27. e6 {[%clk 0:01:49]}  Bd3+ {[%clk 0:01:45]} 28. Ka1 {[%clk 0:01:48]}  Rcc2 {[%clk 0:01:45]} 29. Ra4 {[%clk 0:01:46]}  Bc4 {[%clk 0:01:41]} 30. e7 {[%clk 0:01:44]}  Rxa2+ {[%clk 0:01:41]} 31. Rxa2 {[%clk 0:01:43]}  Rxa2+ {[%clk 0:01:42]} 32. Kb1 {[%clk 0:01:43]}  Kf7 {[%clk 0:01:43]} 33. e4 {[%clk 0:01:43]}  Kxe7 {[%clk 0:01:42]} 34. exd5+ {[%clk 0:01:43]}  Kd6 {[%clk 0:01:42]} 35. dxc6 {[%clk 0:01:43]}  Kxc6 {[%clk 0:01:43]} 36. Rc1 {[%clk 0:01:31]}  Ra4 {[%clk 0:01:43]} 0-1


[Site "https://www.chess.com"]

[Event "Titled Tuesday Blitz August 1 Early 2023"]
[White "Luong Phuong Hanh"]
[Black "Kuchava, Ana"]
[WhiteFideId "12401013"]
[BlackFideId "13605348"]
[WhiteElo "2359"]
[BlackElo "2196"]
[Result "1-0"]
[Round "4"]
[TimeControl "180+1"]
[Date "2023.08.01"]
[WhiteClock "0:00:59"]
[BlackClock "0:00:00"]
[Board "238"]

1. d4 {[%clk 0:02:52]}  d5 {[%clk 0:02:58]} 2. c4 {[%clk 0:02:48]}  e6 {[%clk 0:02:58]} 3. Nf3 {[%clk 0:02:44]}  Nf6 {[%clk 0:02:57]} 4. g3 {[%clk 0:02:39]}  Bb4+ {[%clk 0:02:54]} 5. Bd2 {[%clk 0:02:13]}  Be7 {[%clk 0:02:53]} 6. Bg2 {[%clk 0:02:11]}  O-O {[%clk 0:02:53]} 7. O-O {[%clk 0:02:07]}  c6 {[%clk 0:02:51]} 8. Qc2 {[%clk 0:02:05]}  b6 {[%clk 0:02:50]} 9. Bf4 {[%clk 0:02:04]}  Ba6 {[%clk 0:02:35]} 10. Ne5 {[%clk 0:02:03]}  Nfd7 {[%clk 0:02:32]} 11. cxd5 {[%clk 0:01:57]}  cxd5 {[%clk 0:02:29]} 12. Nc3 {[%clk 0:01:56]}  Nxe5 {[%clk 0:02:26]} 13. dxe5 {[%clk 0:01:56]}  Nd7 {[%clk 0:02:21]} 14. Rfd1 {[%clk 0:01:55]}  Rc8 {[%clk 0:02:19]} 15. Qa4 {[%clk 0:01:51]}  Nc5 {[%clk 0:02:18]} 16. Qc2 {[%clk 0:01:50]}  Qc7 {[%clk 0:02:11]} 17. Rac1 {[%clk 0:01:46]}  Rfd8 {[%clk 0:01:54]} 18. b4 {[%clk 0:01:39]}  Nd7 {[%clk 0:01:49]} 19. Qa4 {[%clk 0:01:39]}  Bc4 {[%clk 0:01:44]} 20. Bxd5 {[%clk 0:01:32]}  Nc5 {[%clk 0:00:45]} 21. bxc5 {[%clk 0:01:25]}  Bxd5 {[%clk 0:00:40]} 22. Nxd5 {[%clk 0:01:19]}  Rxd5 {[%clk 0:00:32]} 23. Rxd5 {[%clk 0:01:19]}  exd5 {[%clk 0:00:33]} 24. e6 {[%clk 0:01:19]}  Qd8 {[%clk 0:00:08]} 25. exf7+ {[%clk 0:01:14]}  Kxf7 {[%clk 0:00:07]} 26. c6 {[%clk 0:01:12]}  a5 {[%clk 0:00:04]} 27. c7 {[%clk 0:01:08]}  Qe8 {[%clk 0:00:03]} 28. Qd4 {[%clk 0:01:08]}  Bf6 {[%clk 0:00:02]} 29. Qxd5+ {[%clk 0:01:07]}  Qe6 {[%clk 0:00:03]} 30. Qxe6+ {[%clk 0:01:00]}  Kxe6 {[%clk 0:00:04]} 31. Rc6+ {[%clk 0:01:00]}  Kd7 {[%clk 0:00:03]} 32. Rxb6 {[%clk 0:01:01]}  Re8 {[%clk 0:00:03]} 33. Rb8 {[%clk 0:00:59]}  Rc8 {[%clk 0:00:00]} 34. Rb5 {[%clk 0:00:59]} 1-0


[Site "https://www.chess.com"]

[Event "Titled Tuesday Blitz August 1 Early 2023"]
[White "Mirzanurov, Bulat"]
[Black "Makhmudov, Shukhrat"]
[WhiteFideId "4184521"]
[BlackFideId "14200775"]
[WhiteElo "2153"]
[BlackElo "2320"]
[Result "1-0"]
[Round "4"]
[TimeControl "180+1"]
[Date "2023.08.01"]
[WhiteClock "0:00:49"]
[BlackClock "0:00:17"]
[Board "241"]

1. e4 {[%clk 0:03:00]}  e5 {[%clk 0:03:00]} 2. Nf3 {[%clk 0:03:00]}  Nc6 {[%clk 0:03:00]} 3. Bb5 {[%clk 0:02:59]}  a6 {[%clk 0:03:00]} 4. Ba4 {[%clk 0:02:58]}  Nf6 {[%clk 0:03:01]} 5. O-O {[%clk 0:02:57]}  Be7 {[%clk 0:03:01]} 6. Re1 {[%clk 0:02:57]}  b5 {[%clk 0:03:01]} 7. Bb3 {[%clk 0:02:58]}  O-O {[%clk 0:03:02]} 8. h3 {[%clk 0:02:56]}  d6 {[%clk 0:03:02]} 9. c3 {[%clk 0:02:53]}  Na5 {[%clk 0:03:02]} 10. Bc2 {[%clk 0:02:52]}  c5 {[%clk 0:03:03]} 11. d4 {[%clk 0:02:52]}  Qc7 {[%clk 0:03:03]} 12. d5 {[%clk 0:02:52]}  c4 {[%clk 0:03:03]} 13. b4 {[%clk 0:02:49]}  cxb3 {[%clk 0:03:01]} 14. axb3 {[%clk 0:02:48]}  Bd7 {[%clk 0:02:51]} 15. Bd2 {[%clk 0:02:46]}  Nb7 {[%clk 0:02:49]} 16. Bd3 {[%clk 0:02:43]}  Nc5 {[%clk 0:02:49]} 17. Bc2 {[%clk 0:02:42]}  a5 {[%clk 0:02:49]} 18. Na3 {[%clk 0:02:37]}  a4 {[%clk 0:02:44]} 19. b4 {[%clk 0:02:33]}  Nb7 {[%clk 0:02:27]} 20. Bd3 {[%clk 0:02:30]}  Qb6 {[%clk 0:02:22]} 21. Be3 {[%clk 0:02:27]}  Qc7 {[%clk 0:02:18]} 22. Qd2 {[%clk 0:02:22]}  Rfc8 {[%clk 0:02:16]} 23. Rac1 {[%clk 0:02:19]}  Nd8 {[%clk 0:02:12]} 24. Nxb5 {[%clk 0:02:12]}  Bxb5 {[%clk 0:02:09]} 25. Bxb5 {[%clk 0:02:13]}  Nxe4 {[%clk 0:02:08]} 26. Qd3 {[%clk 0:02:12]}  f5 {[%clk 0:01:35]} 27. c4 {[%clk 0:02:04]}  a3 {[%clk 0:01:25]} 28. Nd2 {[%clk 0:02:02]}  Nxd2 {[%clk 0:01:15]} 29. Bxd2 {[%clk 0:02:03]}  e4 {[%clk 0:01:15]} 30. Qc2 {[%clk 0:01:56]}  Bf6 {[%clk 0:01:14]} 31. c5 {[%clk 0:01:54]}  a2 {[%clk 0:01:11]} 32. Bc3 {[%clk 0:01:51]}  Qf7 {[%clk 0:01:03]} 33. Bc4 {[%clk 0:01:46]}  dxc5 {[%clk 0:01:01]} 34. Bxf6 {[%clk 0:00:59]}  Qxf6 {[%clk 0:00:59]} 35. Bxa2 {[%clk 0:00:58]}  Nb7 {[%clk 0:00:45]} 36. d6+ {[%clk 0:00:54]}  Kh8 {[%clk 0:00:39]} 37. Bd5 {[%clk 0:00:53]}  c4 {[%clk 0:00:18]} 38. Bxb7 {[%clk 0:00:50]}  Qxd6 {[%clk 0:00:18]} 39. Bxa8 {[%clk 0:00:49]}  Rxa8 {[%clk 0:00:17]} 40. Qxc4 {[%clk 0:00:49]} 1-0


[Site "https://www.chess.com"]

[Event "Titled Tuesday Blitz August 1 Early 2023"]
[White "sterpfi"]
[Black "Acikel, Mert"]
[BlackFideId "12956465"]
[WhiteElo "2150"]
[BlackElo "2319"]
[Result "1/2-1/2"]
[Round "4"]
[TimeControl "180+1"]
[Date "2023.08.01"]
[WhiteClock "0:00:06"]
[BlackClock "0:00:10"]
[Board "242"]

1. e4 {[%clk 0:03:00]}  e5 {[%clk 0:02:59]} 2. Nf3 {[%clk 0:02:59]}  Nc6 {[%clk 0:03:00]} 3. Nc3 {[%clk 0:02:59]}  Nf6 {[%clk 0:03:00]} 4. d4 {[%clk 0:02:58]}  exd4 {[%clk 0:03:01]} 5. Nxd4 {[%clk 0:02:59]}  Bb4 {[%clk 0:03:00]} 6. Nxc6 {[%clk 0:02:58]}  bxc6 {[%clk 0:03:01]} 7. Bd3 {[%clk 0:02:59]}  d5 {[%clk 0:03:00]} 8. exd5 {[%clk 0:03:00]}  cxd5 {[%clk 0:03:01]} 9. O-O {[%clk 0:02:59]}  O-O {[%clk 0:03:01]} 10. h3 {[%clk 0:02:59]}  c6 {[%clk 0:03:01]} 11. Qf3 {[%clk 0:03:00]}  Bd6 {[%clk 0:02:56]} 12. Bf4 {[%clk 0:03:00]}  h6 {[%clk 0:02:45]} 13. b3 {[%clk 0:02:54]}  Qc7 {[%clk 0:02:45]} 14. Bxd6 {[%clk 0:02:53]}  Qxd6 {[%clk 0:02:45]} 15. Rfe1 {[%clk 0:02:52]}  Be6 {[%clk 0:02:44]} 16. Qg3 {[%clk 0:02:43]}  Qxg3 {[%clk 0:02:31]} 17. fxg3 {[%clk 0:02:43]}  c5 {[%clk 0:02:32]} 18. Na4 {[%clk 0:02:27]}  Rac8 {[%clk 0:02:30]} 19. Rad1 {[%clk 0:02:17]}  Rfd8 {[%clk 0:02:28]} 20. Ba6 {[%clk 0:02:02]}  Rc7 {[%clk 0:02:26]} 21. c3 {[%clk 0:01:57]}  g6 {[%clk 0:02:19]} 22. Rc1 {[%clk 0:01:27]}  Kg7 {[%clk 0:02:09]} 23. b4 {[%clk 0:01:19]}  cxb4 {[%clk 0:02:02]} 24. cxb4 {[%clk 0:01:19]}  Rxc1 {[%clk 0:02:02]} 25. Rxc1 {[%clk 0:01:20]}  Bf5 {[%clk 0:02:00]} 26. Nc5 {[%clk 0:01:18]}  Ne4 {[%clk 0:01:54]} 27. Kh2 {[%clk 0:00:53]}  h5 {[%clk 0:01:33]} 28. Rd1 {[%clk 0:00:40]}  Rd6 {[%clk 0:01:26]} 29. Bd3 {[%clk 0:00:20]}  Nc3 {[%clk 0:01:26]} 30. Rd2 {[%clk 0:00:16]}  Bc8 {[%clk 0:01:27]} 31. Bc4 {[%clk 0:00:14]}  d4 {[%clk 0:01:23]} 32. Nb3 {[%clk 0:00:13]}  Rf6 {[%clk 0:00:39]} 33. Nxd4 {[%clk 0:00:12]}  Bb7 {[%clk 0:00:39]} 34. Nf3 {[%clk 0:00:12]}  Bxf3 {[%clk 0:00:33]} 35. gxf3 {[%clk 0:00:12]}  Rxf3 {[%clk 0:00:33]} 36. a4 {[%clk 0:00:11]}  Nxa4 {[%clk 0:00:31]} 37. Ra2 {[%clk 0:00:11]}  Nb6 {[%clk 0:00:31]} 38. Bb5 {[%clk 0:00:07]}  Rb3 {[%clk 0:00:30]} 39. Rxa7 {[%clk 0:00:06]}  Rxb4 {[%clk 0:00:30]} 40. Be8 {[%clk 0:00:06]}  Rb2+ {[%clk 0:00:24]} 41. Kg1 {[%clk 0:00:07]}  Nd5 {[%clk 0:00:18]} 42. Bxf7 {[%clk 0:00:06]}  Ne3 {[%clk 0:00:16]} 43. Be6+ {[%clk 0:00:05]}  Kf6 {[%clk 0:00:16]} 44. Ra6 {[%clk 0:00:04]}  Rg2+ {[%clk 0:00:15]} 45. Kh1 {[%clk 0:00:04]}  Rxg3 {[%clk 0:00:16]} 46. Bg4+ {[%clk 0:00:04]}  Kg5 {[%clk 0:00:16]} 47. Bc8 {[%clk 0:00:03]}  Nf5 {[%clk 0:00:11]} 48. Ra5 {[%clk 0:00:04]}  Rxh3+ {[%clk 0:00:12]} 49. Kg2 {[%clk 0:00:04]}  Re3 {[%clk 0:00:13]} 50. Bxf5 {[%clk 0:00:04]}  gxf5 {[%clk 0:00:13]} 51. Kf2 {[%clk 0:00:05]}  Rb3 {[%clk 0:00:12]} 52. Kg2 {[%clk 0:00:05]}  Kg4 {[%clk 0:00:13]} 53. Ra8 {[%clk 0:00:05]}  Rb2+ {[%clk 0:00:13]} 54. Kg1 {[%clk 0:00:06]}  Kf3 {[%clk 0:00:13]} 55. Rg8 {[%clk 0:00:06]}  Rb1+ {[%clk 0:00:13]} 56. Kh2 {[%clk 0:00:07]}  f4 {[%clk 0:00:13]} 57. Rf8 {[%clk 0:00:06]}  Ke3 {[%clk 0:00:13]} 58. Kg2 {[%clk 0:00:06]}  Rb4 {[%clk 0:00:12]} 59. Rf7 {[%clk 0:00:06]}  h4 {[%clk 0:00:12]} 60. Rf8 {[%clk 0:00:05]}  h3+ {[%clk 0:00:12]} 61. Kxh3 {[%clk 0:00:05]}  f3 {[%clk 0:00:12]} 62. Kg3 {[%clk 0:00:05]}  f2 {[%clk 0:00:08]} 63. Re8+ {[%clk 0:00:04]}  Kd2 {[%clk 0:00:08]} 64. Kxf2 {[%clk 0:00:05]}  Kc3 {[%clk 0:00:08]} 65. Re3+ {[%clk 0:00:04]}  Kc4 {[%clk 0:00:08]} 66. Re4+ {[%clk 0:00:05]}  Kc5 {[%clk 0:00:09]} 67. Rxb4 {[%clk 0:00:06]}  Kxb4 {[%clk 0:00:10]} 1/2-1/2


[Site "https://www.chess.com"]

[Event "Titled Tuesday Blitz August 1 Early 2023"]
[White "Hercegovac, Neven"]
[Black "Levine, David"]
[WhiteFideId "2839135"]
[BlackFideId "2011611"]
[WhiteElo "2314"]
[BlackElo "2095"]
[Result "0-1"]
[Round "4"]
[TimeControl "180+1"]
[Date "2023.08.01"]
[WhiteClock "0:00:02"]
[BlackClock "0:00:19"]
[Board "244"]

1. d4 {[%clk 0:03:00]}  d5 {[%clk 0:02:59]} 2. Bf4 {[%clk 0:02:59]}  Nf6 {[%clk 0:02:57]} 3. e3 {[%clk 0:02:57]}  c5 {[%clk 0:02:56]} 4. Nf3 {[%clk 0:02:54]}  Nc6 {[%clk 0:02:55]} 5. Nbd2 {[%clk 0:02:44]}  Qb6 {[%clk 0:02:53]} 6. dxc5 {[%clk 0:02:40]}  Qxb2 {[%clk 0:02:46]} 7. Rb1 {[%clk 0:02:37]}  Qa3 {[%clk 0:02:41]} 8. Bb5 {[%clk 0:02:34]}  Qxc5 {[%clk 0:02:37]} 9. O-O {[%clk 0:02:09]}  Ne4 {[%clk 0:02:26]} 10. Nxe4 {[%clk 0:01:05]}  dxe4 {[%clk 0:02:25]} 11. Ne5 {[%clk 0:01:04]}  a6 {[%clk 0:01:59]} 12. Bxc6+ {[%clk 0:00:58]}  bxc6 {[%clk 0:01:59]} 13. Qd2 {[%clk 0:00:47]}  Be6 {[%clk 0:01:57]} 14. Rfd1 {[%clk 0:00:38]}  g6 {[%clk 0:01:55]} 15. Nxg6 {[%clk 0:00:14]}  hxg6 {[%clk 0:01:42]} 16. Bb8 {[%clk 0:00:14]}  f6 {[%clk 0:01:33]} 17. Qd8+ {[%clk 0:00:07]}  Kf7 {[%clk 0:01:32]} 18. Qc7 {[%clk 0:00:08]}  Bg7 {[%clk 0:01:30]} 19. Rb7 {[%clk 0:00:04]}  f5 {[%clk 0:01:05]} 20. Rdb1 {[%clk 0:00:02]}  Bf6 {[%clk 0:00:59]} 21. h3 {[%clk 0:00:02]}  Qe5 {[%clk 0:00:53]} 22. Qxe5 {[%clk 0:00:01]}  Bxe5 {[%clk 0:00:53]} 23. Bxe5 {[%clk 0:00:02]}  Rhd8 {[%clk 0:00:50]} 24. Rc7 {[%clk 0:00:02]}  Bd5 {[%clk 0:00:46]} 25. Rbb7 {[%clk 0:00:02]}  Re8 {[%clk 0:00:44]} 26. Bd6 {[%clk 0:00:03]}  Bxa2 {[%clk 0:00:42]} 27. Rxe7+ {[%clk 0:00:03]}  Rxe7 {[%clk 0:00:41]} 28. Rxe7+ {[%clk 0:00:04]}  Kf6 {[%clk 0:00:41]} 29. Bc5 {[%clk 0:00:05]}  a5 {[%clk 0:00:37]} 30. Ra7 {[%clk 0:00:05]}  Rxa7 {[%clk 0:00:37]} 31. Bxa7 {[%clk 0:00:06]}  Ke6 {[%clk 0:00:36]} 32. Bc5 {[%clk 0:00:07]}  Kd5 {[%clk 0:00:36]} 33. Bd4 {[%clk 0:00:07]}  Kc4 {[%clk 0:00:35]} 34. g4 {[%clk 0:00:08]}  fxg4 {[%clk 0:00:31]} 35. hxg4 {[%clk 0:00:08]}  Bb1 {[%clk 0:00:31]} 36. f4 {[%clk 0:00:08]}  Bxc2 {[%clk 0:00:30]} 37. f5 {[%clk 0:00:08]}  gxf5 {[%clk 0:00:30]} 38. gxf5 {[%clk 0:00:09]}  Kd3 {[%clk 0:00:26]} 39. f6 {[%clk 0:00:10]}  Bb3 {[%clk 0:00:26]} 40. Kf2 {[%clk 0:00:10]}  a4 {[%clk 0:00:26]} 41. Kg3 {[%clk 0:00:09]}  a3 {[%clk 0:00:24]} 42. Kf4 {[%clk 0:00:10]}  a2 {[%clk 0:00:23]} 43. Kf5 {[%clk 0:00:10]}  c5 {[%clk 0:00:23]} 44. Be5 {[%clk 0:00:09]}  Bf7 {[%clk 0:00:20]} 45. Ba1 {[%clk 0:00:02]}  c4 {[%clk 0:00:19]} 0-1


[Site "https://www.chess.com"]

[Event "Titled Tuesday Blitz August 1 Early 2023"]
[White "ivana_999"]
[Black "Barwinska, Ewa"]
[BlackFideId "21833761"]
[WhiteElo "2050"]
[BlackElo "2282"]
[Result "1/2-1/2"]
[Round "4"]
[TimeControl "180+1"]
[Date "2023.08.01"]
[WhiteClock "0:01:43"]
[BlackClock "0:00:15"]
[Board "249"]

1. d4 {[%clk 0:03:00]}  d5 {[%clk 0:02:59]} 2. c4 {[%clk 0:03:00]}  e6 {[%clk 0:02:57]} 3. Nc3 {[%clk 0:03:00]}  Nf6 {[%clk 0:02:58]} 4. Nf3 {[%clk 0:02:59]}  Nbd7 {[%clk 0:02:56]} 5. Bg5 {[%clk 0:02:58]}  c6 {[%clk 0:02:53]} 6. e3 {[%clk 0:02:58]}  Qa5 {[%clk 0:02:52]} 7. Nd2 {[%clk 0:02:58]}  Bb4 {[%clk 0:02:43]} 8. Qc2 {[%clk 0:02:55]}  Ne4 {[%clk 0:02:28]} 9. Ndxe4 {[%clk 0:02:40]}  dxe4 {[%clk 0:02:28]} 10. Bf4 {[%clk 0:02:38]}  O-O {[%clk 0:02:16]} 11. a3 {[%clk 0:02:36]}  e5 {[%clk 0:01:54]} 12. dxe5 {[%clk 0:02:26]}  Bxc3+ {[%clk 0:01:43]} 13. Qxc3 {[%clk 0:02:26]}  Qxc3+ {[%clk 0:01:27]} 14. bxc3 {[%clk 0:02:26]}  Re8 {[%clk 0:01:02]} 15. Be2 {[%clk 0:02:23]}  Nxe5 {[%clk 0:01:02]} 16. Bxe5 {[%clk 0:02:23]}  Rxe5 {[%clk 0:01:03]} 17. O-O {[%clk 0:02:23]}  Be6 {[%clk 0:01:01]} 18. Rfd1 {[%clk 0:02:23]}  Rc5 {[%clk 0:00:59]} 19. Rab1 {[%clk 0:02:22]}  Bxc4 {[%clk 0:00:53]} 20. Bxc4 {[%clk 0:02:21]}  Rxc4 {[%clk 0:00:54]} 21. Rxb7 {[%clk 0:02:21]}  Rxc3 {[%clk 0:00:52]} 22. g3 {[%clk 0:02:21]}  h6 {[%clk 0:00:47]} 23. Rdd7 {[%clk 0:02:19]}  Rf8 {[%clk 0:00:46]} 24. Rxa7 {[%clk 0:02:18]}  Rc1+ {[%clk 0:00:41]} 25. Kg2 {[%clk 0:02:18]}  c5 {[%clk 0:00:42]} 26. Rac7 {[%clk 0:02:15]}  Rc3 {[%clk 0:00:35]} 27. a4 {[%clk 0:02:12]}  Ra3 {[%clk 0:00:33]} 28. Rxc5 {[%clk 0:02:06]}  Rxa4 {[%clk 0:00:33]} 29. Re7 {[%clk 0:02:03]}  Rb8 {[%clk 0:00:24]} 30. Rce5 {[%clk 0:01:58]}  Rbb4 {[%clk 0:00:19]} 31. Rf5 {[%clk 0:01:58]}  f6 {[%clk 0:00:17]} 32. Rd5 {[%clk 0:01:57]}  Kf8 {[%clk 0:00:09]} 33. Rdd7 {[%clk 0:01:57]}  Rb2 {[%clk 0:00:08]} 34. Rxg7 {[%clk 0:01:53]}  Raa2 {[%clk 0:00:08]} 35. Rh7 {[%clk 0:01:51]}  Rxf2+ {[%clk 0:00:08]} 36. Kh3 {[%clk 0:01:51]}  Rxh2+ {[%clk 0:00:08]} 37. Kg4 {[%clk 0:01:52]}  h5+ {[%clk 0:00:07]} 38. Kf5 {[%clk 0:01:52]}  Ra5+ {[%clk 0:00:04]} 39. Kxe4 {[%clk 0:01:50]}  Re5+ {[%clk 0:00:02]} 40. Kd4 {[%clk 0:01:44]}  Rd2+ {[%clk 0:00:02]} 41. Kc3 {[%clk 0:01:44]}  Rxd7 {[%clk 0:00:03]} 42. Rxd7 {[%clk 0:01:44]}  Rxe3+ {[%clk 0:00:04]} 43. Kd4 {[%clk 0:01:44]}  Rxg3 {[%clk 0:00:04]} 44. Rh7 {[%clk 0:01:44]}  Rg5 {[%clk 0:00:04]} 45. Ke4 {[%clk 0:01:44]}  Kg8 {[%clk 0:00:05]} 46. Ra7 {[%clk 0:01:42]}  h4 {[%clk 0:00:05]} 47. Kf4 {[%clk 0:01:41]}  Rh5 {[%clk 0:00:05]} 48. Kg4 {[%clk 0:01:40]}  Rh7 {[%clk 0:00:05]} 49. Ra8+ {[%clk 0:01:40]}  Kg7 {[%clk 0:00:05]} 50. Ra7+ {[%clk 0:01:40]}  Kg6 {[%clk 0:00:05]} 51. Rxh7 {[%clk 0:01:39]}  Kxh7 {[%clk 0:00:06]} 52. Kxh4 {[%clk 0:01:39]}  Kh6 {[%clk 0:00:07]} 53. Kg4 {[%clk 0:01:37]}  Kg6 {[%clk 0:00:07]} 54. Kf4 {[%clk 0:01:38]}  f5 {[%clk 0:00:08]} 55. Kf3 {[%clk 0:01:39]}  Kf6 {[%clk 0:00:08]} 56. Kf4 {[%clk 0:01:39]}  Ke6 {[%clk 0:00:08]} 57. Kf3 {[%clk 0:01:39]}  Ke5 {[%clk 0:00:09]} 58. Ke3 {[%clk 0:01:40]}  f4+ {[%clk 0:00:10]} 59. Kf3 {[%clk 0:01:40]}  Kf5 {[%clk 0:00:11]} 60. Kf2 {[%clk 0:01:40]}  Kg4 {[%clk 0:00:12]} 61. Kg2 {[%clk 0:01:41]}  f3+ {[%clk 0:00:11]} 62. Kf2 {[%clk 0:01:41]}  Kf4 {[%clk 0:00:12]} 63. Kf1 {[%clk 0:01:42]}  Kg3 {[%clk 0:00:13]} 64. Kg1 {[%clk 0:01:42]}  f2+ {[%clk 0:00:14]} 65. Kf1 {[%clk 0:01:43]}  Kf3 {[%clk 0:00:15]} 1/2-1/2


[Site "https://www.chess.com"]

[Event "Titled Tuesday Blitz August 1 Early 2023"]
[White "Wisniowski, Natalie"]
[Black "EdmundPlayer"]
[WhiteFideId "30929261"]
[WhiteElo "2045"]
[BlackElo "2268"]
[Result "0-1"]
[Round "4"]
[TimeControl "180+1"]
[Date "2023.08.01"]
[WhiteClock "0:00:18"]
[BlackClock "0:01:11"]
[Board "250"]

1. e4 {[%clk 0:03:00]}  e5 {[%clk 0:02:59]} 2. Nf3 {[%clk 0:02:59]}  Nc6 {[%clk 0:03:00]} 3. d4 {[%clk 0:02:59]}  exd4 {[%clk 0:03:00]} 4. Bc4 {[%clk 0:02:59]}  Nf6 {[%clk 0:02:59]} 5. e5 {[%clk 0:02:58]}  d5 {[%clk 0:03:00]} 6. Bb5 {[%clk 0:02:54]}  Ne4 {[%clk 0:03:00]} 7. Nxd4 {[%clk 0:02:48]}  Bd7 {[%clk 0:02:59]} 8. Bxc6 {[%clk 0:02:33]}  bxc6 {[%clk 0:02:59]} 9. O-O {[%clk 0:02:29]}  Bc5 {[%clk 0:02:57]} 10. Be3 {[%clk 0:02:14]}  Bb6 {[%clk 0:02:48]} 11. Nd2 {[%clk 0:01:54]}  Nxd2 {[%clk 0:02:44]} 12. Qxd2 {[%clk 0:01:53]}  O-O {[%clk 0:02:29]} 13. Rfe1 {[%clk 0:01:46]}  Re8 {[%clk 0:02:22]} 14. Bf4 {[%clk 0:01:43]}  c5 {[%clk 0:02:06]} 15. Nf3 {[%clk 0:01:40]}  Be6 {[%clk 0:02:00]} 16. Ng5 {[%clk 0:01:36]}  h6 {[%clk 0:01:44]} 17. Nxe6 {[%clk 0:01:33]}  Rxe6 {[%clk 0:01:45]} 18. Rad1 {[%clk 0:01:30]}  c6 {[%clk 0:01:31]} 19. h3 {[%clk 0:01:30]}  c4 {[%clk 0:01:22]} 20. Qe2 {[%clk 0:01:20]}  Qh4 {[%clk 0:01:18]} 21. Bg3 {[%clk 0:01:18]}  Qxg3 {[%clk 0:01:18]} 22. Kf1 {[%clk 0:00:49]}  Qh2 {[%clk 0:01:16]} 23. Qh5 {[%clk 0:00:18]}  Rae8 {[%clk 0:01:11]} 0-1


[Site "https://www.chess.com"]

[Event "Titled Tuesday Blitz August 1 Early 2023"]
[White "Warchol, Kamil"]
[Black "Navyblue1"]
[WhiteFideId "21858241"]
[WhiteElo "2267"]
[BlackElo "1941"]
[Result "1-0"]
[Round "4"]
[TimeControl "180+1"]
[Date "2023.08.01"]
[WhiteClock "0:01:43"]
[BlackClock "0:00:00"]
[Board "251"]

1. e4 {[%clk 0:03:00]}  c5 {[%clk 0:02:59]} 2. Nf3 {[%clk 0:03:00]}  d6 {[%clk 0:02:58]} 3. d4 {[%clk 0:03:00]}  cxd4 {[%clk 0:02:59]} 4. Nxd4 {[%clk 0:03:01]}  Nf6 {[%clk 0:02:59]} 5. Nc3 {[%clk 0:03:02]}  a6 {[%clk 0:02:59]} 6. f4 {[%clk 0:03:01]}  e5 {[%clk 0:02:48]} 7. Nf3 {[%clk 0:03:00]}  exf4 {[%clk 0:02:34]} 8. Bxf4 {[%clk 0:02:58]}  Bg4 {[%clk 0:02:14]} 9. Be2 {[%clk 0:02:54]}  Nc6 {[%clk 0:02:09]} 10. O-O {[%clk 0:02:49]}  Be7 {[%clk 0:02:01]} 11. Kh1 {[%clk 0:02:48]}  O-O {[%clk 0:01:53]} 12. Qd2 {[%clk 0:02:46]}  Bxf3 {[%clk 0:01:38]} 13. Bxf3 {[%clk 0:02:45]}  Ne5 {[%clk 0:01:37]} 14. Be2 {[%clk 0:02:42]}  Re8 {[%clk 0:00:46]} 15. Rad1 {[%clk 0:02:41]}  Qa5 {[%clk 0:00:41]} 16. Bg5 {[%clk 0:02:37]}  Rad8 {[%clk 0:00:26]} 17. Bxf6 {[%clk 0:02:15]}  Bxf6 {[%clk 0:00:25]} 18. Nd5 {[%clk 0:02:01]}  Qxd2 {[%clk 0:00:24]} 19. Nxf6+ {[%clk 0:02:01]}  gxf6 {[%clk 0:00:24]} 20. Rxd2 {[%clk 0:02:02]}  Kg7 {[%clk 0:00:22]} 21. Rfd1 {[%clk 0:02:00]}  Nc6 {[%clk 0:00:19]} 22. Bf3 {[%clk 0:02:00]}  Re6 {[%clk 0:00:18]} 23. c3 {[%clk 0:01:59]}  Ne5 {[%clk 0:00:16]} 24. Be2 {[%clk 0:01:57]}  Nc6 {[%clk 0:00:15]} 25. Bf3 {[%clk 0:01:57]}  Na5 {[%clk 0:00:15]} 26. b3 {[%clk 0:01:56]}  Nc6 {[%clk 0:00:14]} 27. c4 {[%clk 0:01:56]}  Ne5 {[%clk 0:00:12]} 28. Kg1 {[%clk 0:01:56]}  Nxf3+ {[%clk 0:00:11]} 29. gxf3 {[%clk 0:01:57]}  Kg6 {[%clk 0:00:11]} 30. Kf2 {[%clk 0:01:57]}  f5 {[%clk 0:00:11]} 31. exf5+ {[%clk 0:01:55]}  Kxf5 {[%clk 0:00:12]} 32. c5 {[%clk 0:01:55]}  d5 {[%clk 0:00:12]} 33. Rxd5+ {[%clk 0:01:55]}  Rxd5 {[%clk 0:00:11]} 34. Rxd5+ {[%clk 0:01:56]}  Kf6 {[%clk 0:00:12]} 35. Rd7 {[%clk 0:01:54]}  b6 {[%clk 0:00:11]} 36. cxb6 {[%clk 0:01:50]}  Rxb6 {[%clk 0:00:12]} 37. Ke3 {[%clk 0:01:49]}  Ke6 {[%clk 0:00:12]} 38. Rd4 {[%clk 0:01:48]}  h6 {[%clk 0:00:11]} 39. Rh4 {[%clk 0:01:47]}  Kf5 {[%clk 0:00:11]} 40. Rh5+ {[%clk 0:01:46]}  Kg6 {[%clk 0:00:11]} 41. Rd5 {[%clk 0:01:47]}  Re6+ {[%clk 0:00:10]} 42. Kf2 {[%clk 0:01:47]}  f6 {[%clk 0:00:10]} 43. b4 {[%clk 0:01:46]}  Rb6 {[%clk 0:00:10]} 44. a3 {[%clk 0:01:45]}  Rc6 {[%clk 0:00:10]} 45. Rd3 {[%clk 0:01:45]}  Rc2+ {[%clk 0:00:09]} 46. Kg3 {[%clk 0:01:45]}  Ra2 {[%clk 0:00:08]} 47. h3 {[%clk 0:01:43]}  Kg5 {[%clk 0:00:07]} 48. Rd5+ {[%clk 0:01:43]}  Kg6 {[%clk 0:00:00]} 49. Ra5 {[%clk 0:01:43]} 1-0


[Site "https://www.chess.com"]